[Event "44th Chess Olympiad Women 2022"]
[Site "Chennai"]
[Date "2022.08.05"]
[Round "7.52"]
[White "Gusmao, Maria do Ceu"]
[Black "Makwena, Christine"]
[Result "0-1"]
[WhiteElo "1442"]
[BlackElo "1609"]
[Annotator "NA"]
[PlyCount "72"]
[EventDate "2022.??.??"]
[TimeControl "60"]

1. c4 {[%emt 0:00:02]} Nf6 {[%emt 0:00:10]} 2. Nc3 {[%emt 0:00:08]} d6 {
[%emt 0:00:07]} 3. Nf3 {[%emt 0:01:23]} e5 {[%emt 0:01:01]} 4. e4 {[%emt 0:00:
00]} g6 {[%emt 0:00:28]} 5. Be2 {[%emt 0:02:50]} Bg7 {[%emt 0:00:15]} 6. d4 {
[%emt 0:06:57]} exd4 {[%emt 0:00:42]} 7. Nxd4 {[%emt 0:00:34]} O-O {[%emt 0:00:
00]} 8. Be3 {[%emt 0:05:21]} Re8 {[%emt 0:00:43]} 9. Qc2 {[%emt 0:07:47]} Qe7 {
[%emt 0:01:15]} 10. f3 {[%emt 0:04:54]} c6 {[%emt 0:01:02]} 11. Bd3 {[%emt 0:
00:00]} Nbd7 {[%emt 0:00:31]} 12. O-O {[%emt 0:11:33]} Nc5 {[%emt 0:06:26]} 13.
Rae1 {[%emt 0:05:37]} Nxd3 {[%emt 0:01:42]} 14. Qxd3 {[%emt 0:00:13]} Nd7 {
[%emt 0:00:14]} 15. Bf2 {[%emt 0:08:42]} Ne5 {[%emt 0:01:53]} 16. Qe2 {[%emt 0:
00:00]} Qc7 {[%emt 0:01:55]} 17. b3 {[%emt 0:04:31]} Qa5 {[%emt 0:02:20]} 18.
Qc2 {[%emt 0:01:00]} a6 {[%emt 0:02:26]} 19. h3 {[%emt 0:10:41]} c5 {[%emt 0:
00:00]} 20. Nde2 {[%emt 0:00:45]} b5 {[%emt 0:01:06]} 21. f4 {[%emt 0:00:22]}
Nc6 {[%emt 0:00:41]} 22. Nd5 {[%emt 0:02:00]} Be6 {[%emt 0:01:25]} 23. f5 {
[%emt 0:05:54]} Bxd5 {[%emt 0:00:33]} 24. cxd5 {[%emt 0:00:57]} Nb4 {[%emt 0:
00:00]} 25. Qd2 {[%emt 0:02:17]} Qxa2 {[%emt 0:05:10]} 26. Qxa2 {[%emt 0:04:46]
} Nxa2 {[%emt 0:00:06]} 27. Nc1 {[%emt 0:00:58]} Nc3 {[%emt 0:00:43]} 28. fxg6
{[%emt 0:00:38]} hxg6 {[%emt 0:00:26]} 29. Bg3 {[%emt 0:01:11]} Be5 {[%emt 0:
00:00]} 30. Bh4 {[%emt 0:01:10]} Bd4+ {[%emt 0:00:56]} 31. Kh2 {[%emt 0:00:18]}
Nxe4 {[%emt 0:02:19]} 32. Nd3 {[%emt 0:00:54]} Nd2 {[%emt 0:01:49]} 33. Rf4 {
[%emt 0:00:40]} Rxe1 {[%emt 0:00:23]} 34. Nxe1 {[%emt 0:00:02]} Be5 {[%emt 0:
00:00]} 35. Bg3 {[%emt 0:00:14]} Bxf4 {[%emt 0:00:55]} 36. Bxf4 {[%emt 0:00:26]
} Nxb3 {[%emt 0:00:18]} 0-1

[Event "44th Chess Olympiad Women 2022"]
[Site "Chennai"]
[Date "2022.08.05"]
[Round "7.52"]
[White "Mudodo, Refiloe Hazel"]
[Black "dos Santos, Elfiana"]
[Result "1-0"]
[WhiteElo "1604"]
[BlackElo "1560"]
[Annotator "NA RC"]
[PlyCount "89"]
[EventDate "2022.??.??"]
[TimeControl "60"]

1. e4 {[%emt 0:00:05]} e5 {[%emt 0:00:13]} 2. Nf3 {[%emt 0:00:14]} Nc6 {
[%emt 0:00:31]} 3. Bb5 {[%emt 0:00:27]} Nf6 {[%emt 0:00:13]} 4. Qe2 {[%emt 0:
00:00]} Bc5 {[%emt 0:00:27]} 5. c3 {[%emt 0:00:56]} O-O {[%emt 0:00:22]} 6. O-O
{[%emt 0:01:44]} a6 {[%emt 0:02:09]} 7. Ba4 {[%emt 0:00:52]} d6 {[%emt 0:00:35]
} 8. d3 {[%emt 0:01:12]} Bd7 {[%emt 0:06:23]} 9. Bb3 {[%emt 0:03:26]} Be6 {
[%emt 0:04:46]} 10. Bc2 {[%emt 0:02:06]} h6 {[%emt 0:01:36]} 11. Rd1 {[%emt 0:
00:00]} Bg4 {[%emt 0:05:31]} 12. Be3 {[%emt 0:02:29]} Bxe3 {[%emt 0:04:19]} 13.
fxe3 {[%emt 0:00:24]} Qe7 {[%emt 0:02:45]} 14. Nbd2 {[%emt 0:03:22]} Rad8 {
[%emt 0:01:32]} 15. Nf1 {[%emt 0:02:57]} g6 {[%emt 0:06:51]} 16. h3 {[%emt 0:
00:00]} Be6 {[%emt 0:02:08]} 17. Ng3 {[%emt 0:04:10]} Kh7 {[%emt 0:02:31]} 18.
Rf1 {[%emt 0:07:08]} Rg8 {[%emt 0:00:28]} 19. Qf2 {[%emt 0:02:18]} Nh5 {
[%emt 0:02:21]} 20. Kh2 {[%emt 0:02:28]} Rg7 {[%emt 0:02:10]} 21. a3 {[%emt 0:
00:00]} Rdg8 {[%emt 0:00:06]} 22. Kh1 {[%emt 0:04:14]} Qd7 {[%emt 0:03:05]} 23.
Kh2 {[%emt 0:00:31]} Nxg3 {[%emt 0:03:02]} 24. Qxg3 {[%emt 0:00:19]} g5 {
[%emt 0:00:17]} 25. Ng1 {[%emt 0:01:02]} g4 {[%emt 0:02:40]} 26. h4 {[%emt 0:
00:00]} Ne7 {[%emt 0:02:16]} 27. d4 {[%emt 0:01:43]} Ng6 {[%emt 0:00:17]} 28.
d5 {[%emt 0:00:44]} Bxd5 {[%emt 0:02:18]} 29. exd5 {[%emt 0:00:14]} Kh8 {
[%emt 0:02:28]} 30. h5 {[%emt 0:00:37]} Nf8 {[%emt 0:00:55]} 31. Rf6 {[%emt 0:
00:00]} Nh7 {[%emt 0:01:12]} 32. Bxh7 {[%emt 0:05:28]} Rxh7 {[%emt 0:00:35]}
33. Raf1 {[%emt 0:00:21]} Qe7 {[%emt 0:00:26]} 34. Kh1 {[%emt 0:00:43]} Rg5 {
[%emt 0:00:48]} 35. Qh4 {[%emt 0:02:22]} Rgg7 {[%emt 0:02:08]} 36. Ne2 {
[%emt 0:00:39]} Rg5 {[%emt 0:01:38]} 37. Ng3 {[%emt 0:00:12]} Rgg7 {[%emt 0:00:
00]} 38. Nf5 {[%emt 0:00:11]} Qf8 {[%emt 0:00:39]} 39. Nxg7 {[%emt 0:00:18]}
Rxg7 {[%emt 0:00:34]} 40. Rxh6+ {[%emt 0:00:13]} Kg8 {[%emt 0:00:01]} 41. Rhf6
{[%emt 0:30:14]} Kh8 {[%emt 0:36:15]} 42. Kg1 {[%emt 0:01:02]} Qg8 {[%emt 0:00:
00]} 43. Rh6+ {[%emt 0:00:25]} Rh7 {[%emt 0:00:16]} 44. Qf6+ {[%emt 0:00:06]}
Qg7 {[%emt 0:00:11]} 45. Rxh7+ {[%emt 0:00:18]} 1-0

[Event "44th Chess Olympiad Women 2022"]
[Site "Chennai"]
[Date "2022.08.05"]
[Round "7.52"]
[White "Shaba, Linda Dalitso"]
[Black "da Silva, Sonizia A.Tilman"]
[Result "1-0"]
[WhiteElo "1658"]
[BlackElo "1507"]
[Annotator "NA RC"]
[PlyCount "85"]
[EventDate "2022.??.??"]
[TimeControl "60"]

1. Nf3 {[%emt 0:00:06]} Nc6 {[%emt 0:00:11]} 2. d4 {[%emt 0:00:07]} Nf6 {
[%emt 0:00:19]} 3. c4 {[%emt 0:00:15]} e6 {[%emt 0:00:40]} 4. g3 {[%emt 0:00:
00]} b6 {[%emt 0:00:32]} 5. Bg2 {[%emt 0:00:10]} Bb7 {[%emt 0:01:04]} 6. O-O {
[%emt 0:00:42]} d5 {[%emt 0:01:03]} 7. Qa4 {[%emt 0:05:23]} Ne4 {[%emt 0:01:41]
} 8. Ne5 {[%emt 0:01:59]} Qd6 {[%emt 0:02:03]} 9. Nc3 {[%emt 0:07:24]} f6 {
[%emt 0:03:11]} 10. Nd3 {[%emt 0:12:57]} O-O-O {[%emt 0:02:41]} 11. cxd5 {
[%emt 0:02:24]} Nxc3 {[%emt 0:00:54]} 12. bxc3 {[%emt 0:00:31]} exd5 {[%emt 0:
00:00]} 13. Bf4 {[%emt 0:00:40]} Qe6 {[%emt 0:01:30]} 14. Rfe1 {[%emt 0:00:24]}
g5 {[%emt 0:00:49]} 15. Bd2 {[%emt 0:00:11]} h5 {[%emt 0:01:35]} 16. e4 {
[%emt 0:00:18]} Na5 {[%emt 0:03:32]} 17. exd5 {[%emt 0:02:38]} Qf5 {[%emt 0:00:
00]} 18. Be4 {[%emt 0:03:09]} Qh3 {[%emt 0:03:54]} 19. c4 {[%emt 0:01:35]} h4 {
[%emt 0:01:24]} 20. Bxa5 {[%emt 0:02:18]} hxg3 {[%emt 0:07:29]} 21. hxg3 {
[%emt 0:03:08]} bxa5 {[%emt 0:01:01]} 22. Nc5 {[%emt 0:05:09]} Bxc5 {[%emt 0:
00:00]} 23. dxc5 {[%emt 0:00:12]} f5 {[%emt 0:05:03]} 24. Bg2 {[%emt 0:00:29]}
Qh6 {[%emt 0:02:43]} 25. c6 {[%emt 0:00:42]} Ba6 {[%emt 0:02:35]} 26. Qxa5 {
[%emt 0:00:25]} Qh2+ {[%emt 0:00:20]} 27. Kf1 {[%emt 0:00:28]} Bxc4+ {[%emt 0:
00:00]} 28. Re2 {[%emt 0:00:04]} Bxe2+ {[%emt 0:01:43]} 29. Kxe2 {[%emt 0:00:
00]} Rde8+ {[%emt 0:00:28]} 30. Kf1 {[%emt 0:00:53]} Qh5 {[%emt 0:08:13]} 31.
Qb5 {[%emt 0:02:13]} Qh6 {[%emt 0:02:36]} 32. Qb7+ {[%emt 0:00:35]} Kd8 {
[%emt 0:00:09]} 33. Qb8+ {[%emt 0:01:01]} Ke7 {[%emt 0:00:09]} 34. Re1+ {
[%emt 0:01:06]} Kf7 {[%emt 0:00:26]} 35. Qxc7+ {[%emt 0:00:25]} Kf8 {[%emt 0:
00:00]} 36. Rxe8+ {[%emt 0:00:22]} Kxe8 {[%emt 0:00:30]} 37. Qd7+ {[%emt 0:00:
00]} Kf8 {[%emt 0:00:19]} 38. c7 {[%emt 0:00:12]} Qa6+ {[%emt 0:01:12]} 39. Kg1
{[%emt 0:00:38]} f4 {[%emt 0:05:35]} 40. c8=Q+ {[%emt 0:00:18]} Qxc8 {[%emt 0:
00:00]} 41. Qxc8+ {[%emt 0:30:08]} Kg7 {[%emt 0:30:03]} 42. Qc7+ {[%emt 0:00:
00]} Kf6 {[%emt 0:00:16]} 43. Qc3+ {[%emt 0:00:08]} 1-0

[Event "44th Chess Olympiad Women 2022"]
[Site "Chennai"]
[Date "2022.08.05"]
[Round "7.52"]
[White "Tilman, Zulmira Americo"]
[Black "Charinda, Kudzanayi"]
[Result "0-1"]
[WhiteElo "1255"]
[BlackElo "1719"]
[Annotator "NA RC"]
[PlyCount "70"]
[EventDate "2022.??.??"]
[TimeControl "60"]

1. d4 {[%emt 0:00:14]} Nf6 {[%emt 0:00:08]} 2. c4 {[%emt 0:00:06]} e6 {[%emt 0:
00:00]} 3. Nc3 {[%emt 0:00:25]} Be7 {[%emt 0:00:51]} 4. Nf3 {[%emt 0:00:11]} b6
{[%emt 0:00:32]} 5. e3 {[%emt 0:01:28]} Bb7 {[%emt 0:00:19]} 6. g3 {[%emt 0:00:
00]} O-O {[%emt 0:00:39]} 7. Bg2 {[%emt 0:00:22]} d6 {[%emt 0:00:27]} 8. O-O {
[%emt 0:01:00]} Nbd7 {[%emt 0:00:16]} 9. b3 {[%emt 0:02:26]} Rc8 {[%emt 0:00:
00]} 10. Bb2 {[%emt 0:00:50]} Ba6 {[%emt 0:01:33]} 11. Re1 {[%emt 0:01:17]} Bb7
{[%emt 0:00:56]} 12. a3 {[%emt 0:03:41]} c5 {[%emt 0:01:06]} 13. d5 {[%emt 0:
00:00]} exd5 {[%emt 0:01:09]} 14. cxd5 {[%emt 0:00:08]} a6 {[%emt 0:00:50]} 15.
e4 {[%emt 0:01:33]} Re8 {[%emt 0:00:36]} 16. Bh3 {[%emt 0:07:03]} Rb8 {[%emt 0:
00:00]} 17. Qd3 {[%emt 0:06:40]} b5 {[%emt 0:02:42]} 18. b4 {[%emt 0:05:46]} c4
{[%emt 0:01:03]} 19. Qe3 {[%emt 0:02:42]} Bf8 {[%emt 0:00:41]} 20. Qd2 {
[%emt 0:01:49]} Qb6 {[%emt 0:01:44]} 21. a4 {[%emt 0:03:45]} bxa4 {[%emt 0:00:
00]} 22. Nxa4 {[%emt 0:03:09]} Qc7 {[%emt 0:00:39]} 23. Bc3 {[%emt 0:02:00]}
Nxe4 {[%emt 0:00:46]} 24. Qd4 {[%emt 0:05:10]} Nxc3 {[%emt 0:00:55]} 25. Rxe8 {
[%emt 0:00:52]} Rxe8 {[%emt 0:00:42]} 26. Qxc3 {[%emt 0:01:04]} Bxd5 {[%emt 0:
00:00]} 27. Nb2 {[%emt 0:00:28]} Nb8 {[%emt 0:01:57]} 28. Bg2 {[%emt 0:00:29]}
g6 {[%emt 0:01:26]} 29. Rc1 {[%emt 0:05:35]} Bg7 {[%emt 0:01:01]} 30. Nd4 {
[%emt 0:01:47]} Bxg2 {[%emt 0:02:31]} 31. Kxg2 {[%emt 0:00:19]} Qb7+ {[%emt 0:
00:00]} 32. Kg1 {[%emt 0:00:33]} Nc6 {[%emt 0:00:30]} 33. Rd1 {[%emt 0:08:18]}
Nxd4 {[%emt 0:00:46]} 34. Rxd4 {[%emt 0:00:11]} Bxd4 {[%emt 0:00:10]} 35. Qxd4
{[%emt 0:01:06]} Re1# {[%emt 0:00:12]} 0-1

[Event "44th Chess Olympiad Women 2022"]
[Site "Chennai"]
[Date "2022.08.05"]
[Round "7.53"]
[White "Ranasinghe, S D.."]
[Black "Saraci, Rinesa"]
[Result "1-0"]
[WhiteElo "1687"]
[BlackElo "1494"]
[Annotator "NA RC"]
[PlyCount "67"]
[EventDate "2022.??.??"]
[TimeControl "60"]

1. Nf3 {[%emt 0:01:05]} d5 {[%emt 0:00:48]} 2. c4 {[%emt 0:01:16]} dxc4 {
[%emt 0:03:06]} 3. Na3 {[%emt 0:00:20]} Nd7 {[%emt 0:02:45]} 4. Nxc4 {[%emt 0:
00:00]} e6 {[%emt 0:01:16]} 5. a3 {[%emt 0:06:47]} Ngf6 {[%emt 0:06:13]} 6. g3
{[%emt 0:01:21]} Be7 {[%emt 0:06:49]} 7. Bg2 {[%emt 0:00:04]} c6 {[%emt 0:00:
00]} 8. O-O {[%emt 0:00:10]} O-O {[%emt 0:01:56]} 9. d3 {[%emt 0:02:24]} Re8 {
[%emt 0:04:29]} 10. Bf4 {[%emt 0:00:48]} Nf8 {[%emt 0:06:36]} 11. Nce5 {
[%emt 0:01:48]} h6 {[%emt 0:06:44]} 12. Rc1 {[%emt 0:01:14]} Nd5 {[%emt 0:00:
00]} 13. Bd2 {[%emt 0:00:20]} Nd7 {[%emt 0:01:46]} 14. Qa4 {[%emt 0:00:43]} Bf6
{[%emt 0:06:55]} 15. d4 {[%emt 0:01:40]} N5b6 {[%emt 0:04:44]} 16. Qc2 {
[%emt 0:00:12]} Bxe5 {[%emt 0:05:30]} 17. dxe5 {[%emt 0:00:28]} Nd5 {[%emt 0:
00:00]} 18. Rfd1 {[%emt 0:08:13]} Qc7 {[%emt 0:02:41]} 19. e4 {[%emt 0:00:58]}
Ne7 {[%emt 0:00:46]} 20. Bb4 {[%emt 0:04:58]} Ng6 {[%emt 0:15:22]} 21. Bd6 {
[%emt 0:00:46]} Qa5 {[%emt 0:01:06]} 22. b4 {[%emt 0:00:24]} Qb6 {[%emt 0:00:
00]} 23. h4 {[%emt 0:00:36]} a5 {[%emt 0:02:55]} 24. h5 {[%emt 0:00:36]} Ne7 {
[%emt 0:02:11]} 25. Nd2 {[%emt 0:00:33]} a4 {[%emt 0:01:26]} 26. Nc4 {[%emt 0:
00:00]} Qa6 {[%emt 0:00:51]} 27. Na5 {[%emt 0:00:22]} Qa7 {[%emt 0:06:23]} 28.
Qd2 {[%emt 0:00:21]} Qa6 {[%emt 0:00:49]} 29. Bf1 {[%emt 0:00:32]} b5 {[%emt 0:
00:00]} 30. Bxe7 {[%emt 0:00:06]} Rxe7 {[%emt 0:00:14]} 31. Rxc6 {[%emt 0:00:
00]} Qa7 {[%emt 0:00:20]} 32. Qd6 {[%emt 0:00:32]} Re8 {[%emt 0:01:29]} 33.
Bxb5 {[%emt 0:00:22]} Rd8 {[%emt 0:00:40]} 34. Rc7 {[%emt 0:00:53]} 1-0

[Event "44th Chess Olympiad Women 2022"]
[Site "Chennai"]
[Date "2022.08.05"]
[Round "7.53"]
[White "Saraci, Ndriqona"]
[Black "Wijesuriya, G P Y.."]
[Result "0-1"]
[WhiteElo "1425"]
[BlackElo "1579"]
[Annotator "NA RC"]
[PlyCount "38"]
[EventDate "2022.??.??"]
[TimeControl "60"]

1. e4 {[%emt 0:00:07]} e5 {[%emt 0:00:23]} 2. Nf3 {[%emt 0:00:37]} Nc6 {
[%emt 0:00:08]} 3. Bc4 {[%emt 0:00:58]} Nf6 {[%emt 0:01:07]} 4. d3 {[%emt 0:00:
00]} Be7 {[%emt 0:00:39]} 5. O-O {[%emt 0:02:48]} O-O {[%emt 0:00:06]} 6. Nc3 {
[%emt 0:07:04]} d6 {[%emt 0:00:10]} 7. a3 {[%emt 0:01:48]} Bg4 {[%emt 0:00:12]}
8. h3 {[%emt 0:01:17]} Bh5 {[%emt 0:03:38]} 9. Be3 {[%emt 0:02:20]} Qd7 {
[%emt 0:11:28]} 10. Nd5 {[%emt 0:07:58]} Kh8 {[%emt 0:01:44]} 11. Nxf6 {
[%emt 0:11:25]} Bxf6 {[%emt 0:11:30]} 12. c3 {[%emt 0:13:49]} Be7 {[%emt 0:00:
00]} 13. Nxe5 {[%emt 0:14:50]} Nxe5 {[%emt 0:04:09]} 14. Qxh5 {[%emt 0:02:56]}
f5 {[%emt 0:01:51]} 15. exf5 {[%emt 0:05:32]} Rxf5 {[%emt 0:00:29]} 16. Qe2 {
[%emt 0:01:51]} d5 {[%emt 0:02:08]} 17. Ba2 {[%emt 0:01:50]} Raf8 {[%emt 0:00:
00]} 18. d4 {[%emt 0:02:01]} Nf3+ {[%emt 0:03:39]} 19. Kh1 {[%emt 0:11:08]} Rh5
{[%emt 0:00:13]} 0-1

[Event "44th Chess Olympiad Women 2022"]
[Site "Chennai"]
[Date "2022.08.05"]
[Round "7.53"]
[White "Sharku, Enesa"]
[Black "Gamage, Desandhi Dhihansa"]
[Result "0-1"]
[WhiteElo "1094"]
[BlackElo "1561"]
[Annotator "NA"]
[PlyCount "70"]
[EventDate "2022.??.??"]
[TimeControl "60"]

1. e4 {[%emt 0:00:03]} c5 {[%emt 0:00:03]} 2. Nf3 {[%emt 0:00:21]} d6 {[%emt 0:
00:00]} 3. d4 {[%emt 0:00:30]} cxd4 {[%emt 0:00:05]} 4. Nxd4 {[%emt 0:00:08]}
Nf6 {[%emt 0:00:05]} 5. Nc3 {[%emt 0:00:26]} a6 {[%emt 0:00:05]} 6. Be3 {
[%emt 0:01:24]} e5 {[%emt 0:00:11]} 7. Nb3 {[%emt 0:01:45]} Be6 {[%emt 0:00:05]
} 8. Be2 {[%emt 0:03:21]} Nbd7 {[%emt 0:04:26]} 9. O-O {[%emt 0:02:53]} b5 {
[%emt 0:03:09]} 10. Bf3 {[%emt 0:04:18]} Be7 {[%emt 0:04:14]} 11. Nd5 {[%emt 0:
00:00]} Nxd5 {[%emt 0:04:18]} 12. exd5 {[%emt 0:00:19]} Bf5 {[%emt 0:00:04]}
13. Bg4 {[%emt 0:03:34]} Bg6 {[%emt 0:05:36]} 14. f4 {[%emt 0:03:08]} exf4 {
[%emt 0:00:59]} 15. Bxf4 {[%emt 0:04:07]} O-O {[%emt 0:02:24]} 16. a4 {[%emt 0:
00:00]} Qc7 {[%emt 0:02:56]} 17. c3 {[%emt 0:01:53]} Rab8 {[%emt 0:09:49]} 18.
axb5 {[%emt 0:04:28]} Rxb5 {[%emt 0:02:24]} 19. Be2 {[%emt 0:01:07]} Qb6+ {
[%emt 0:11:47]} 20. Nd4 {[%emt 0:04:01]} Rxb2 {[%emt 0:05:47]} 21. Rxa6 {
[%emt 0:01:14]} Qb7 {[%emt 0:01:53]} 22. Bxd6 {[%emt 0:08:07]} Re8 {[%emt 0:00:
00]} 23. Rc6 {[%emt 0:05:20]} Bf6 {[%emt 0:13:12]} 24. Bg4 {[%emt 0:08:11]} Nb6
{[%emt 0:03:39]} 25. c4 {[%emt 0:04:30]} Nxc4 {[%emt 0:02:08]} 26. Rxc4 {
[%emt 0:04:20]} Qxd5 {[%emt 0:00:08]} 27. Be2 {[%emt 0:01:42]} Qxd6 {[%emt 0:
00:00]} 28. Qa4 {[%emt 0:04:22]} Rd8 {[%emt 0:01:46]} 29. Nc6 {[%emt 0:03:02]}
Re8 {[%emt 0:04:30]} 30. Bg4 {[%emt 0:02:53]} Bd3 {[%emt 0:02:25]} 31. Na7 {
[%emt 0:02:09]} Qe7 {[%emt 0:01:16]} 32. Rc8 {[%emt 0:01:13]} Qe3+ {[%emt 0:00:
00]} 33. Kh1 {[%emt 0:00:40]} Rxc8 {[%emt 0:00:44]} 34. Nxc8 {[%emt 0:00:19]}
Bxf1 {[%emt 0:00:20]} 35. Bf3 {[%emt 0:02:02]} Bxg2+ {[%emt 0:00:12]} 0-1

[Event "44th Chess Olympiad Women 2022"]
[Site "Chennai"]
[Date "2022.08.05"]
[Round "7.54"]
[White "Ibtihal Mohammed"]
[Black "Mongeli, Sasha"]
[Result "0-1"]
[WhiteElo "1445"]
[BlackElo "1672"]
[Annotator "NA RC"]
[PlyCount "54"]
[EventDate "2022.??.??"]
[TimeControl "60"]

1. e4 {[%emt 0:00:02]} e5 {[%emt 0:00:30]} 2. Nf3 {[%emt 0:00:23]} Nf6 {
[%emt 0:00:43]} 3. Nc3 {[%emt 0:01:21]} Nc6 {[%emt 0:00:32]} 4. Bc4 {[%emt 0:
00:00]} Nxe4 {[%emt 0:11:04]} 5. Nxe4 {[%emt 0:09:21]} d5 {[%emt 0:00:19]} 6.
Bxd5 {[%emt 0:00:06]} Qxd5 {[%emt 0:00:15]} 7. Nc3 {[%emt 0:00:06]} Qd8 {
[%emt 0:05:03]} 8. h3 {[%emt 0:05:55]} Bc5 {[%emt 0:06:21]} 9. d3 {[%emt 0:00:
00]} Bf5 {[%emt 0:03:29]} 10. Qe2 {[%emt 0:01:10]} f6 {[%emt 0:11:45]} 11. Be3
{[%emt 0:03:59]} Bb4 {[%emt 0:07:01]} 12. Bd2 {[%emt 0:07:02]} Qd7 {[%emt 0:00:
00]} 13. a3 {[%emt 0:01:25]} Ba5 {[%emt 0:00:52]} 14. Ne4 {[%emt 0:05:28]} Bb6
{[%emt 0:01:36]} 15. c3 {[%emt 0:18:11]} O-O-O {[%emt 0:01:50]} 16. Rd1 {
[%emt 0:06:30]} Qxd3 {[%emt 0:00:51]} 17. Qxd3 {[%emt 0:00:17]} Rxd3 {[%emt 0:
00:00]} 18. Ng3 {[%emt 0:00:16]} Bg6 {[%emt 0:01:12]} 19. Be3 {[%emt 0:06:38]}
Rxd1+ {[%emt 0:04:27]} 20. Kxd1 {[%emt 0:00:53]} Rd8+ {[%emt 0:03:27]} 21. Kc1
{[%emt 0:00:41]} Bxe3+ {[%emt 0:01:02]} 22. fxe3 {[%emt 0:00:06]} Rd3 {[%emt 0:
00:00]} 23. e4 {[%emt 0:01:10]} Na5 {[%emt 0:05:24]} 24. Nf5 {[%emt 0:05:26]}
Bxf5 {[%emt 0:05:19]} 25. exf5 {[%emt 0:00:48]} Nc4 {[%emt 0:00:42]} 26. Rd1 {
[%emt 0:10:37]} Rxd1+ {[%emt 0:04:36]} 27. Kxd1 {[%emt 0:00:09]} Ne3+ {[%emt 0:
00:00]} 0-1

[Event "44th Chess Olympiad Women 2022"]
[Site "Chennai"]
[Date "2022.08.05"]
[Round "7.54"]
[White "Marwa, Jadalla"]
[Black "Madelta Glenda"]
[Result "0-1"]
[WhiteElo "1316"]
[BlackElo "1516"]
[Annotator "NA RC"]
[PlyCount "102"]
[EventDate "2022.??.??"]
[TimeControl "60"]

1. d4 {[%emt 0:00:02]} d5 {[%emt 0:00:05]} 2. Bf4 {[%emt 0:00:13]} c5 {[%emt 0:
00:00]} 3. e3 {[%emt 0:00:12]} cxd4 {[%emt 0:00:15]} 4. exd4 {[%emt 0:00:10]}
Nc6 {[%emt 0:00:12]} 5. c3 {[%emt 0:04:32]} Bf5 {[%emt 0:00:24]} 6. Nd2 {
[%emt 0:00:49]} f6 {[%emt 0:01:39]} 7. Ngf3 {[%emt 0:01:50]} g5 {[%emt 0:00:20]
} 8. Bg3 {[%emt 0:17:07]} h5 {[%emt 0:00:59]} 9. h4 {[%emt 0:05:20]} g4 {
[%emt 0:01:54]} 10. Nh2 {[%emt 0:00:05]} Bh7 {[%emt 0:14:34]} 11. Nb3 {[%emt 0:
00:00]} e6 {[%emt 0:07:34]} 12. Bd3 {[%emt 0:03:28]} Nh6 {[%emt 0:04:56]} 13.
Bxh7 {[%emt 0:01:53]} Rxh7 {[%emt 0:00:16]} 14. Qd3 {[%emt 0:01:49]} Nf5 {
[%emt 0:03:10]} 15. Nf1 {[%emt 0:02:32]} Qd7 {[%emt 0:01:38]} 16. O-O-O {
[%emt 0:07:55]} O-O-O {[%emt 0:07:47]} 17. Re1 {[%emt 0:03:13]} Nxg3 {[%emt 0:
00:00]} 18. Nxg3 {[%emt 0:01:51]} e5 {[%emt 0:07:26]} 19. Qg6 {[%emt 0:11:41]}
Rh6 {[%emt 0:07:07]} 20. Qc2 {[%emt 0:09:29]} e4 {[%emt 0:05:08]} 21. Rhf1 {
[%emt 0:00:15]} f5 {[%emt 0:10:25]} 22. f3 {[%emt 0:03:35]} Bd6 {[%emt 0:07:18]
} 23. Ne2 {[%emt 0:08:06]} Qe7 {[%emt 0:04:23]} 24. fxe4 {[%emt 0:08:36]} fxe4
{[%emt 0:00:50]} 25. g3 {[%emt 0:00:36]} Rf6 {[%emt 0:01:43]} 26. Rxf6 {
[%emt 0:01:13]} Qxf6 {[%emt 0:00:10]} 27. Qd1 {[%emt 0:00:50]} Bxg3 {[%emt 0:
00:00]} 28. Nxg3 {[%emt 0:03:24]} Qf4+ {[%emt 0:00:10]} 29. Kb1 {[%emt 0:00:05]
} Qxg3 {[%emt 0:00:16]} 30. Qe2 {[%emt 0:01:37]} Qxh4 {[%emt 0:00:43]} 31. Nc5
{[%emt 0:00:38]} Qe7 {[%emt 0:01:36]} 32. Rf1 {[%emt 0:00:27]} Rf8 {[%emt 0:00:
00]} 33. Rxf8+ {[%emt 0:00:26]} Qxf8 {[%emt 0:00:14]} 34. Qb5 {[%emt 0:00:38]}
Qf7 {[%emt 0:00:50]} 35. a3 {[%emt 0:00:31]} g3 {[%emt 0:00:17]} 36. Qe2 {
[%emt 0:00:16]} Ne7 {[%emt 0:01:25]} 37. Qg2 {[%emt 0:00:23]} Nf5 {[%emt 0:00:
00]} 38. Qh3 {[%emt 0:00:31]} h4 {[%emt 0:00:13]} 39. Nb3 {[%emt 0:00:33]} Kc7
{[%emt 0:00:42]} 40. Nd2 {[%emt 0:00:07]} e3 {[%emt 0:00:53]} 41. Nf3 {[%emt 0:
00:00]} e2 {[%emt 0:32:13]} 42. Qh1 {[%emt 0:00:00]} Qh7 {[%emt 0:00:00]} 43.
Kc1 {[%emt 0:00:00]} Qh6+ {[%emt 0:00:00]} 44. Kc2 {[%emt 0:00:00]} Ne3+ {
[%emt 0:00:00]} 45. Kd2 {[%emt 0:00:00]} Ng2+ {[%emt 0:00:00]} 46. Kc2 {
[%emt 0:00:00]} h3 {[%emt 0:00:00]} 47. a4 {[%emt 0:00:00]} Ne3+ {[%emt 0:00:
00]} 48. Kd3 {[%emt 0:00:00]} Nf1 {[%emt 0:00:00]} 49. Kc2 {[%emt 0:00:00]} g2
{[%emt 0:00:00]} 50. Qg1 {[%emt 0:00:00]} h2 {[%emt 0:00:00]} 51. Nxh2 {
[%emt 0:03:06]} Qxh2 {[%emt 0:00:00]} 0-1